bitfinex/quotes_ETHUSD_20220105
["timestamp","ask_amount","ask_price","bid_price","bid_amount"]
[1641341631346,0.01710497,3789.6,3789.3,1.44607008]
[1641341631551,0.01710497,3789.6,3789.4,0.6598225]
[1641341632347,0.65984,3790.2,3789.4,0.6598225]
[1641341633149,0.65984,3790.2,3789.4,0.9598225]
[1641341633749,0.65984,3790.2,3789.4,0.3]
[1641341633950,0.65984,3790.2,3789.3,1.74607008]
[1641341634195,1.32609148,3791.0,3789.4,0.6597946]
[1641341634892,2.97757027,3790.7,3789.4,0.6597946]
[1641341635192,0.65973,3790.4,3789.4,0.6597946]
[1641341635394,3.63733027,3790.7,3789.4,0.6597946]
[1641341635592,2.97757027,3790.7,3789.4,0.6597946]
[1641341635991,2.97757027,3790.7,3789.4,3.2597946]
[1641341636193,0.65978,3790.2,3789.4,3.2597946]
[1641341636795,1.31955,3790.6,3789.4,3.2597946]
[1641341636995,1.31955,3790.6,3789.4,4.1919946]
[1641341637695,0.72039624,3791.1,3789.4,4.76839454]
[1641341637947,1.38001624,3791.1,3789.4,4.76839454]
[1641341638139,1.38001624,3791.1,3789.5,1.0]
[1641341638438,0.72039624,3791.1,3789.5,1.3]
[1641341638639,0.72039624,3791.1,3789.6,21.472]
[1641341639039,0.72039624,3791.1,3789.6,22.772]
[1641341639444,0.72039624,3791.1,3789.6,7.382]
[1641341640239,0.72039624,3791.1,3789.6,7.082]
[1641341640638,1.38001624,3791.1,3789.6,7.082]
[1641341641441,0.72039624,3791.1,3789.6,7.082]
[1641341641886,0.67153308,3791.1,3790.9,1.37446337]
[1641341642285,0.00738951,3791.0,3790.9,1.37446337]
[1641341642684,0.66702951,3791.0,3790.9,1.37446337]
[1641341643086,0.66702951,3791.0,3790.8,1.50082057]
[1641341643284,0.00738951,3791.0,3790.8,1.50082057]
[1641341643484,0.00682109,3790.9,3790.8,1.80082057]
[1641341645435,0.00682109,3790.9,3790.8,2.96256746]
[1641341645636,0.00682109,3790.9,3790.8,2.66256746]
[1641341646337,0.00682109,3790.9,3790.8,2.96256746]
[1641341646643,0.00682109,3790.9,3790.8,3.14206746]
[1641341647536,0.00682109,3790.9,3790.8,2.96256746]
[1641341647738,0.00682109,3790.9,3790.8,4.28154316]
[1641341648937,0.00682109,3790.9,3790.8,3.98154316]
[1641341649591,0.00682109,3790.9,3790.8,6.44629407]
[1641341649792,0.00682109,3790.9,3790.8,3.98154316]
[1641341649990,0.00682109,3790.9,3790.8,4.28154316]
[1641341650391,0.00682109,3790.9,3790.8,6.82626283]
[1641341650591,0.00682109,3790.9,3790.8,4.56004316]
[1641341650790,0.00682109,3790.9,3790.8,7.00423437]
[1641341650990,0.00682109,3790.9,3790.8,4.56004316]
[1641341651391,0.00682109,3790.9,3790.8,7.01748061]
[1641341651793,0.00682109,3790.9,3790.8,5.28154316]
[1641341652193,0.00682109,3790.9,3790.8,7.73824018]
[1641341652795,0.00682109,3790.9,3790.8,6.73824018]
[1641341653045,0.00682109,3790.9,3790.8,6.74501194]
[1641341653245,2.109e-05,3790.9,3790.8,23.98351194]
[1641341653446,2.109e-05,3790.9,3790.8,24.02693234]
[1641341653646,0.67153308,3791.1,3790.9,5.7]
[1641341653847,0.6923926,3791.7,3790.9,5.7]
[1641341653848,0.6923926,3791.7,3791.2,15.39]
[1641341654144,0.6923926,3791.7,3791.4,15.39]
[1641341654345,0.6923926,3791.7,3791.6,15.39]
[1641341654545,9.26e-05,3791.7,3791.6,16.772]
[1641341654747,0.00463998,3791.7,3791.6,16.772]
[1641341654950,0.00463998,3791.7,3791.6,17.072]
[1641341655546,0.00463998,3791.7,3791.6,1.682]
[1641341655746,0.00463998,3791.7,3791.6,9.82303725]
[1641341656347,0.00463998,3791.7,3791.6,9.81860098]
[1641341657797,0.00463998,3791.7,3791.6,25.24163115]
[1641341658397,6.14,3793.2,3791.7,5.6546]
[1641341658597,6.14,3793.2,3792.7,0.6591]
[1641341658999,6.14,3793.2,3792.8,2.18214238]
[1641341659499,6.14,3793.2,3792.8,2.48214238]
[1641341660299,1.7827872,3793.7,3792.8,2.48214238]
[1641341660754,1.79358725,3793.6,3792.8,2.48214238]
[1641341661156,0.01023163,3793.5,3792.8,2.48214238]
[1641341661559,0.0096632,3793.4,3792.8,2.48214238]
[1641341661755,0.0096632,3793.4,3793.2,1.12715826]
[1641341661954,0.00909478,3793.3,3793.2,1.12715826]
[1641341662157,0.00909478,3793.3,3793.2,1.42715826]
[1641341662556,0.00909478,3793.3,3792.8,1.10594102]
[1641341662953,0.00852636,3793.2,3792.8,1.10594102]
[1641341663356,0.00795793,3793.1,3792.8,1.10594102]
[1641341663754,0.00738951,3793.0,3792.8,1.10594102]
[1641341663954,0.00738951,3793.0,3792.8,2.75011076]
[1641341664196,0.00103814,3793.2,3792.8,2.75011076]
[1641341664197,0.00682109,3792.9,3792.8,2.75011076]
[1641341664601,0.00795793,3792.9,3792.8,5.35011076]
[1641341665593,0.62140049,3793.4,3792.8,5.35011076]
[1641341665793,0.62140049,3793.4,3792.8,5.35181603]
[1641341665993,0.00113685,3793.3,3792.8,5.35181603]
[1641341668048,0.00113685,3793.3,3792.8,3.70764629]
[1641341668238,0.382,3793.2,3792.8,3.70764629]
[1641341668438,1.31891,3793.0,3792.8,3.70764629]
[1641341668635,4.282,3792.9,3792.8,3.70764629]
[1641341668836,4.582,3792.9,3792.8,3.70764629]
[1641341669840,5.90091,3792.9,3792.8,3.70764629]
[1641341670244,1.70091,3792.9,3792.8,3.70764629]
[1641341670647,0.382,3792.9,3792.8,3.70764629]
[1641341678152,0.65932,3793.1,3792.8,3.70764629]
[1641341678557,0.65932,3793.1,3792.9,1.15065848]
[1641341678952,0.01824178,3793.3,3792.9,1.15065848]
[1641341679995,0.67754178,3793.3,3792.9,1.15065848]
[1641341680194,0.66043685,3793.3,3792.9,1.15065848]
[1641341680393,0.65931,3793.2,3792.9,1.15065848]
[1641341683152,1.31973685,3793.3,3792.9,1.15065848]
[1641341683351,0.66043685,3793.3,3792.9,1.15065848]
[1641341683755,0.00113685,3793.3,3792.9,1.15065848]
[1641341684252,0.00113685,3793.3,3792.9,1.45065848]
[1641341686257,0.00113685,3793.3,3792.9,1.15065848]
[1641341687295,0.66041685,3793.3,3792.9,1.15065848]
[1641341688293,1.31866,3793.2,3792.9,1.15065848]
[1641341688694,1.31866,3793.2,3792.9,0.00113684]
[1641341689095,1.70066,3793.2,3792.9,0.00113684]
[1641341689695,3.4834472,3793.2,3792.9,0.00113684]
[1641341690545,2.7827872,3793.1,3792.9,0.00113684]
[1641341690747,6.35942,3793.0,3792.9,0.00113684]
[1641341691342,8.1422072,3793.0,3792.9,0.00113684]
[1641341691742,8.5242072,3793.0,3792.9,0.00113684]
[1641341691943,1.04142,3793.0,3792.9,0.00113684]
[1641341692142,3.84142,3793.0,3792.9,0.00113684]
[1641341692542,5.14142,3793.0,3792.9,0.00113684]
[1641341692743,5.14142,3793.0,3792.8,2.6]
[1641341692744,5.7,3792.9,3792.8,2.6]
[1641341692943,5.7,3792.9,3790.2,1.31901]
[1641341692944,0.65958,3791.6,3790.2,1.31901]
[1641341693145,0.65958,3791.6,3790.3,3.6014]
[1641341693146,0.65959,3791.5,3790.3,3.6014]
[1641341693345,0.65959,3791.5,3790.4,0.01421059]
[1641341693644,0.65959,3791.5,3791.0,1.10307159]
[1641341693844,0.65958,3791.6,3791.1,1.39856214]
[1641341694048,0.65957,3791.5,3791.1,1.40879377]
[1641341694293,0.65956,3791.7,3791.2,0.0096632]
[1641341695793,2.63833,3791.9,3791.2,0.0096632]
[1641341695994,0.65961,3791.5,3791.2,0.0096632]
[1641341697295,1.31921,3791.5,3791.2,0.0096632]
[1641341697495,1.97881,3791.5,3791.2,0.0096632]
[1641341699153,0.682,3791.4,3791.2,0.0096632]
[1641341699346,5.80972,3791.3,3791.2,0.0096632]
[1641341699546,5.80972,3791.3,3790.1,0.01591586]
[1641341699547,0.65974,3790.8,3790.1,0.01591586]
[1641341699947,0.65973,3790.9,3790.1,0.01591586]
[1641341700147,0.65973,3790.9,3790.6,1.20273248]
[1641341700552,0.65973,3790.9,3790.7,0.01250532]
[1641341701149,0.65973,3790.9,3790.1,0.01591586]
[1641341701894,0.65973,3790.9,3790.4,1.09974334]
[1641341702294,0.65973,3790.9,3790.5,0.01364217]
[1641341702594,0.65975,3790.6,3790.5,0.01364217]
[1641341702796,1.3195,3790.6,3790.5,0.01364217]
[1641341703296,1.12337513,3790.6,3790.5,0.01364217]
[1641341703494,1.12337513,3790.6,3789.7,0.01818956]
[1641341703495,0.65983,3790.4,3789.7,0.01818956]
[1641341703695,1.34175,3790.6,3789.7,0.01818956]
[1641341703696,0.65989,3790.1,3789.7,0.01818956]
[1641341703894,0.382,3790.0,3789.3,0.02046325]
[1641341704095,0.382,3790.0,3789.0,0.02216852]
[1641341704096,1.2873,3790.0,3789.0,0.02216852]
[1641341704299,1.32008,3789.8,3788.7,0.02387379]
[1641341704503,0.382,3789.7,3788.7,0.02387379]
[1641341704799,0.66003,3789.4,3788.7,0.02387379]
[1641341705197,1.382,3789.7,3789.3,1.41684063]
[1641341705472,1.382,3789.7,3789.4,0.01989483]
[1641341705871,0.66002,3789.3,3788.5,0.02501064]
[1641341706477,0.66002,3789.3,3789.0,1.17525454]
[1641341706678,1.382,3789.7,3789.0,1.17525454]
[1641341706879,1.382,3789.7,3789.1,0.0216001]
[1641341707080,0.382,3789.7,3789.1,0.0216001]
[1641341708278,0.382,3789.7,3789.6,1.15971924]
[1641341708683,0.382,3789.7,3789.6,1.17847722]
[1641341709083,3.7192,3790.4,3789.6,4.90950522]
[1641341709302,4.46402033,3790.6,3789.6,4.90950522]
[1641341709303,0.43204692,3789.7,3789.6,2.42297722]
[1641341709505,0.43204692,3789.7,3789.6,2.40421924]
[1641341711004,0.43204692,3790.0,3789.7,5.7]
[1641341711209,0.01691465,3790.1,3789.8,8.56200303]
[1641341711210,6.157e-05,3790.1,3789.8,8.56200303]
[1641341711405,4.46402033,3791.1,3789.9,5.7]
[1641341711704,4.46402033,3791.5,3790.0,2.51956143]
[1641341712107,1.77260881,3791.4,3790.1,0.01591586]
[1641341712304,1.77260881,3791.4,3791.0,1.34060809]
[1641341712703,1.77260881,3791.4,3791.1,0.01023163]
[1641341713740,1.77260881,3791.4,3790.7,0.01250532]
[1641341714039,1.77260881,3791.4,3789.8,0.65958]
[1641341714040,1.77260881,3791.4,3790.2,0.01534744]
[1641341714842,0.65966,3791.5,3790.2,0.01534744]
[1641341714843,1.77260881,3791.3,3790.8,1.23235636]
[1641341715241,1.77260881,3791.3,3790.9,0.01136847]
[1641341715640,1.77260881,3791.5,3790.9,2.57751783]
[1641341715840,1.77260881,3791.5,3790.9,3.29811783]
[1641341716041,1.77260881,3791.5,3791.0,0.01080005]
[1641341716795,1.77260881,3792.2,3791.0,1.98902955]
[1641341716992,1.77260881,3792.2,3791.7,1.17232125]
[1641341717392,1.77260881,3792.2,3791.8,0.00625266]
[1641341717595,1.77260881,3792.3,3791.8,0.00625266]
[1641341717994,0.65955,3792.2,3791.8,0.00625266]
[1641341718397,1.77260881,3792.0,3791.8,0.00625266]
[1641341718596,1.77260881,3792.0,3791.8,1.08283488]
[1641341718996,1.77260881,3792.0,3791.9,0.00568424]
[1641341719800,1.77260881,3792.4,3791.9,0.00568424]
[1641341721145,1.0,3792.6,3791.9,0.00568424]
[1641341721146,1.77260881,3792.5,3791.9,0.00568424]
[1641341721346,1.77260881,3792.5,3791.8,0.00625266]
[1641341721545,1.77260881,3792.3,3791.8,0.00625266]
[1641341721949,2.43212881,3792.3,3791.8,0.00625266]
[1641341722152,0.382,3792.2,3791.8,0.00625266]
[1641341722352,0.382,3792.2,3791.1,0.01023163]
[1641341722548,2.15460881,3792.2,3791.1,0.01023163]
[1641341723148,2.15460881,3792.2,3791.6,1.47992536]
[1641341723549,1.77260881,3792.0,3791.7,0.00682109]
[1641341724797,1.77260881,3792.1,3791.7,0.00682109]
[1641341725999,0.382,3792.2,3791.7,0.00682109]
[1641341726199,1.04154,3792.2,3791.7,0.00682109]
[1641341726902,1.77260881,3792.1,3791.7,0.00682109]
[1641341727702,1.04154,3792.2,3791.7,0.00682109]
[1641341728345,1.77260881,3792.1,3791.7,0.00682109]
[1641341728555,2.07260881,3792.1,3791.7,0.00682109]
[1641341728746,0.65957,3792.0,3791.7,0.00682109]
[1641341729147,1.77260881,3792.1,3791.7,0.00682109]
[1641341730246,2.15460881,3792.2,3791.7,0.00682109]
[1641341730846,0.382,3792.2,3791.7,0.00682109]
[1641341732301,1.77260881,3792.4,3791.7,0.00682109]
[1641341732897,1.77260881,3792.5,3791.7,0.00682109]
[1641341733497,3.8536,3792.7,3791.7,0.00682109]
[1641341733498,5.92620881,3792.7,3791.7,0.00682109]
[1641341733698,5.92620881,3792.7,3791.7,0.66618109]
[1641341733897,2.07260881,3792.7,3792.4,1.38077339]
[1641341734297,2.07260881,3792.7,3792.5,0.0022737]
[1641341734799,1.77260881,3792.6,3792.5,0.0022737]
[1641341736044,1.77260881,3792.8,3792.5,0.0022737]
[1641341736245,1.77260881,3792.8,3792.5,2.44961699]
[1641341736644,1.77260881,3792.8,3792.6,0.00170528]
[1641341736844,0.01691453,3793.0,3792.6,0.00170528]
[1641341737045,0.01691453,3793.0,3792.5,0.0022737]
[1641341737647,0.01691453,3793.0,3792.6,0.6592093]
[1641341737846,0.01691453,3793.0,3792.6,0.9592093]
[1641341738044,0.01691453,3793.0,3792.7,0.00113685]
[1641341738244,1.7748825,3793.3,3792.7,0.00113685]
[1641341738446,0.00227369,3793.3,3792.7,0.00113685]
[1641341738647,0.00170527,3793.2,3792.8,1.35354185]
[1641341738846,0.00170527,3793.2,3792.8,1.65354185]
[1641341739046,0.00113684,3793.1,3792.8,1.65354185]
[1641341739500,1.77260881,3793.6,3792.8,1.65354185]
[1641341739900,0.00341054,3793.5,3792.8,1.65354185]
[1641341740298,0.00284211,3793.4,3792.8,1.65354185]
[1641341740698,1.77260881,3793.6,3792.8,1.65354185]
[1641341741100,0.00341054,3793.5,3792.8,1.65354185]
[1641341741500,0.00284211,3793.4,3792.8,4.02630533]
[1641341741709,0.00284211,3793.4,3792.8,1.65354185]
[1641341741902,0.00341054,3793.5,3793.0,0.8114163]
[1641341742102,0.00341054,3793.5,3793.1,0.3]
[1641341742302,0.00284211,3793.4,3793.1,0.3]
[1641341742702,5.11479,3795.0,3793.1,0.3]
[1641341742703,0.00454738,3793.7,3793.1,0.3]
[1641341742948,0.00454738,3793.7,3793.3,0.6590425]
[1641341743148,0.00397896,3793.6,3793.3,0.6590425]
[1641341743348,0.00397896,3793.6,3793.4,0.65899]
[1641341743551,0.00341054,3793.5,3793.4,5.80899]
[1641341744447,0.00341054,3793.5,3793.4,0.65899]
[1641341744746,0.00341054,3793.5,3793.4,3.35899]
[1641341744945,0.00341054,3793.5,3793.4,0.65899]
[1641341745346,0.00341054,3793.5,3793.3,3.595125]
[1641341745648,0.00284211,3793.4,3793.3,3.595125]
[1641341746045,0.00284211,3793.4,3793.3,2.936085]
[1641341746900,0.00284211,3793.4,3793.3,18.326085]
[1641341747301,0.00284211,3793.4,3793.3,18.985035]
[1641341747501,0.00284211,3793.4,3793.3,19.667035]
[1641341747701,10.9448454,3795.6,3793.5,15.39]
[1641341747901,8.37122033,3795.6,3794.4,0.6588714]
[1641341748102,4.31402033,3795.6,3794.4,1.3177514]
[1641341748306,4.31402033,3795.6,3795.3,1.19875381]
[1641341748605,1.77260881,3796.1,3795.3,1.19875381]
[1641341748801,1.77260881,3796.1,3795.3,1.84115381]
[1641341749001,0.01250532,3795.6,3795.3,1.84115381]
[1641341749203,0.00083141,3795.5,3795.3,1.84115381]
[1641341749401,2.61594053,3796.5,3795.3,1.84115381]
[1641341749602,3.9589,3796.6,3795.3,1.84115381]
[1641341749802,0.00397896,3796.2,3795.3,1.84115381]
[1641341750306,2.61902327,3796.5,3795.3,1.84115381]
[1641341750307,0.00341054,3796.1,3795.3,1.19875381]
[1641341750563,4.65882,3796.4,3796.3,1.18176822]
[1641341750860,1.66052527,3796.4,3796.3,1.18176822]
[1641341751056,1.66052527,3796.4,3795.4,0.00397897]
[1641341751459,0.6588333,3796.1,3795.4,0.00397897]
[1641341751656,0.65886,3796.0,3795.4,0.00397897]
[1641341752258,0.65886,3796.0,3795.7,1.16069266]
[1641341752461,0.6588773,3795.9,3795.7,1.16069266]
[1641341752659,0.6588773,3795.9,3795.8,0.00170527]
[1641341753062,0.6588773,3795.9,3794.5,1.1347]
[1641341753063,5.93569935,3795.9,3794.6,0.00852636]
[1641341753262,1.3,3795.8,3794.6,0.00852636]
[1641341753469,1.31817,3795.2,3794.6,0.00852636]
[1641341753762,1.31817,3795.2,3793.9,1.12411866]
[1641341753763,0.382,3795.1,3794.9,1.49548013]
[1641341754209,0.382,3795.1,3795.0,0.00625266]
[1641341754609,0.01691435,3795.8,3795.0,0.00625266]
[1641341754808,0.01691435,3795.8,3795.1,1.26802367]
[1641341755207,0.01691435,3795.8,3795.2,0.00511582]
[1641341756212,0.66344879,3795.9,3795.2,0.00511582]
[1641341756608,0.658912,3795.7,3795.2,0.00511582]
[1641341757307,0.66344879,3795.9,3795.2,0.00511582]
[1641341758146,0.0045499,3795.8,3795.2,0.00511582]
[1641341758346,0.658911,3795.7,3795.2,0.00511582]
[1641341758546,0.65894,3795.6,3795.2,0.00511582]
[1641341759343,0.60894,3795.6,3795.2,0.00511582]
[1641341760845,0.60894,3795.6,3795.0,0.00625266]
[1641341761709,0.0045499,3795.8,3795.0,1.23548051]
[1641341762103,0.0045499,3795.8,3795.1,0.00568424]
[1641341762603,0.03082872,3795.6,3795.3,0.65875]
[1641341762806,1.77260881,3796.9,3795.5,5.7]
[1641341763003,1.77260881,3796.9,3795.7,0.01291334]
[1641341763402,1.77260881,3796.9,3795.8,0.00170527]
[1641341763607,4.46170675,3797.0,3795.9,0.65855]
[1641341763805,0.01653825,3797.5,3795.9,0.65855]
[1641341764104,0.01653825,3797.5,3795.9,1.31713]
[1641341764304,2.43113881,3797.9,3796.0,15.39]
[1641341764603,3.09034915,3797.7,3796.0,15.69]
[1641341764804,3.09034915,3797.7,3796.0,16.34855]
[1641341765105,3.09034915,3797.7,3796.1,2.67773613]
[1641341765551,3.74891915,3797.7,3796.2,3.54967685]
[1641341765752,3.09034915,3797.7,3796.2,2.32700139]
[1641341765946,1.0,3797.6,3796.2,2.32700139]
[1641341766150,0.382,3797.5,3796.2,2.32700139]
[1641341766647,0.65868,3797.1,3796.2,2.32700139]
[1641341767747,0.65863,3797.3,3796.2,2.32700139]
[1641341768346,0.382,3797.5,3796.2,2.32700139]
[1641341770607,1.0406407,3797.5,3796.2,2.32700139]
[1641341771412,0.65861,3797.4,3796.2,4.86105328]
[1641341771609,3.09034915,3797.7,3796.2,4.87343916]
[1641341772010,3.09034915,3797.7,3796.2,5.47343916]
[1641341772411,3.09034915,3797.7,3796.2,5.46105328]
[1641341772610,3.09034915,3797.7,3796.2,2.92700139]
[1641341772811,3.74891915,3797.7,3796.2,5.38381571]
[1641341773075,3.74891915,3797.7,3796.2,5.35602855]
[1641341773276,3.74891915,3797.7,3796.2,2.92700139]
[1641341773478,1.0,3797.6,3796.2,2.32700139]
[1641341774086,0.882,3797.1,3796.2,2.32700139]
[1641341774285,0.882,3797.1,3796.2,1.16178759]
[1641341774479,0.382,3797.1,3796.2,1.16178759]
[1641341774680,0.6587495,3796.8,3796.2,1.16178759]
[1641341775080,0.65873,3796.7,3796.2,1.16178759]
[1641341775280,0.6587495,3796.8,3796.2,1.16178759]
[1641341776080,0.65873,3796.7,3796.2,1.16178759]
[1641341777309,1.040612,3797.6,3796.2,3.63761532]
[1641341777507,3.09034915,3797.7,3796.2,4.23761532]
[1641341777707,3.09034915,3797.7,3796.2,1.16178759]
[1641341778205,3.09034915,3797.7,3796.2,4.06178759]
[1641341778406,3.09034915,3797.7,3796.2,1.76178759]
[1641341778807,3.09034915,3797.7,3796.2,1.46178759]
[1641341779007,3.47234915,3797.7,3796.2,1.76178759]
[1641341780554,3.47234915,3797.7,3796.2,4.20790831]
[1641341780751,3.47234915,3797.7,3796.2,1.76178759]
[1641341780950,0.65856,3797.6,3796.2,1.76178759]
[1641341781758,5.70795792,3797.5,3796.4,0.65861]
[1641341781953,0.6586485,3797.4,3796.1,1.20681972]
[1641341782152,0.65863,3797.2,3796.1,1.20681972]
[1641341782352,1.04063,3797.2,3796.1,1.20681972]
[1641341782552,1.04063,3797.2,3796.1,1.50681972]
[1641341782553,0.00568423,3797.1,3796.1,1.50681972]
[1641341782753,0.00568423,3797.1,3797.0,1.19268196]
[1641341782954,1.04063,3797.2,3797.0,1.19268196]
[1641341783357,1.04063,3797.2,3796.1,1.86545972]
[1641341783554,1.04063,3797.2,3796.1,1.20681972]
[1641341783956,1.04063,3797.2,3795.8,0.00170527]
[1641341784200,0.3,3797.1,3795.8,0.00170527]
[1641341784403,0.65879,3796.5,3795.8,1.22163527]
[1641341784801,0.65879,3796.5,3795.9,0.00113685]
[1641341788654,1.3175846,3796.5,3795.9,0.00113685]
[1641341788854,1.3175846,3796.5,3796.2,1.07983219]
[1641341789055,0.65879,3796.5,3796.2,1.07983219]
[1641341789458,0.382,3796.7,3796.2,1.07983219]
[1641341789855,0.00284211,3796.6,3796.2,1.07983219]
[1641341790259,0.00227369,3796.5,3796.2,1.07983219]
[1641341790657,1.69939,3797.2,3796.2,1.07983219]
[1641341790658,0.00170527,3796.4,3796.2,1.07983219]
[1641341791056,0.00113684,3796.3,3795.9,0.00113685]
[1641341791456,0.00227369,3796.5,3795.9,0.00113685]
[1641341791898,1.31758,3796.6,3795.9,0.00113685]
[1641341791899,0.00170527,3796.4,3795.9,0.00113685]
[1641341792298,0.00113684,3796.3,3795.9,0.00113685]
[1641341792699,0.6588067,3796.4,3795.9,0.00113685]
[1641341792899,0.65879,3796.3,3795.9,0.00113685]
[1641341793100,0.65992684,3796.3,3795.9,0.00113685]
[1641341793299,0.00170527,3796.4,3795.9,0.00113685]
[1641341793702,0.00113684,3796.3,3795.9,0.00113685]
[1641341794100,0.00284211,3796.6,3795.9,0.00113685]
[1641341794501,1.0407,3796.7,3795.9,0.00113685]
[1641341794502,0.00227369,3796.5,3795.9,0.00113685]
[1641341794903,0.00170527,3796.4,3795.9,0.00113685]
[1641341795305,0.382,3796.7,3795.9,0.00113685]
[1641341795306,0.00113684,3796.3,3795.9,0.00113685]
[1641341795751,0.00284211,3796.6,3795.9,0.00113685]
[1641341796151,0.382,3796.7,3795.9,0.65982685]
[1641341796152,0.00227369,3796.5,3795.9,0.65982685]
[1641341796352,0.33427369,3796.7,3795.9,0.65982685]
[1641341796553,0.00284211,3796.6,3796.0,0.00284212]
[1641341797453,0.00284211,3796.6,3795.8,2.40057721]
[1641341797454,0.00284211,3796.6,3795.9,0.00341054]
[1641341798952,0.65873,3796.5,3795.9,0.00341054]
[1641341800899,1.04073,3796.5,3795.9,0.00341054]
[1641341801103,0.65881,3796.1,3795.9,0.00341054]
[1641341803546,1.31761,3796.4,3795.9,0.00341054]
[1641341803547,0.382,3796.5,3795.9,0.00341054]
[1641341803747,0.65876,3796.4,3795.9,0.00341054]
[1641341805947,0.65885,3796.0,3795.7,0.00454739]
[1641341806148,0.6588659,3796.0,3795.2,0.00738951]
[1641341806348,0.382,3796.3,3795.2,0.00738951]
[1641341806697,0.332,3796.3,3795.3,1.20520056]
[1641341807098,1.77260881,3796.1,3795.4,0.00625266]
[1641341807299,0.65892,3796.0,3795.4,0.00625266]
[1641341807498,0.65892,3795.7,3795.4,0.00625266]
[1641341807704,0.6589093,3795.6,3795.4,0.00625266]
[1641341808100,1.31784,3795.8,3795.4,0.00625266]
[1641341808702,0.65888,3795.8,3795.4,0.00625266]
[1641341811349,1.77260881,3795.7,3795.4,0.00625266]
[1641341811948,1.72260881,3795.7,3795.4,0.00625266]
[1641341812749,0.382,3795.8,3795.4,0.00625266]
[1641341817202,2.65891322,3796.2,3795.4,0.00625266]
[1641341817402,0.39853825,3796.3,3795.4,0.00625266]
[1641341817603,0.65884,3796.1,3795.4,0.00625266]
[1641341818059,0.39853825,3796.3,3795.4,0.00625266]
[1641341818259,0.382,3796.3,3795.4,0.00625266]
[1641341818652,0.65884,3796.1,3795.4,0.00625266]
[1641341821803,0.382,3796.3,3795.4,2.50789374]
[1641341822002,1.77680674,3796.4,3795.7,0.65877]
[1641341822401,0.05984211,3796.6,3795.8,0.00397896]
[1641341822802,0.00284211,3796.6,3796.5,1.2215939]
[1641341826454,1.77680674,3796.9,3796.5,1.2215939]
[1641341826653,2.73550674,3796.9,3796.5,1.2215939]
[1641341826856,0.00113685,3796.7,3796.5,1.2215939]
[1641341827255,0.00113685,3796.7,3795.6,1.2084]
[1641341827655,0.00113685,3796.7,3795.7,0.00454739]
[1641341828760,1.31865725,3796.7,3796.3,1.10744993]
[1641341828955,0.65991725,3796.7,3796.3,1.10744993]
[1641341829605,0.00113685,3796.7,3796.3,1.10744993]
[1641341830206,0.65987685,3796.7,3796.3,1.10744993]
[1641341834254,0.65877,3796.5,3796.3,1.10744993]
[1641341834454,0.65877,3796.5,3795.7,0.66332739]
[1641341834855,0.65877,3796.5,3795.8,0.00397896]
[1641341835457,0.65877,3796.5,3795.9,1.37506032]
[1641341835756,0.65877,3796.5,3796.0,0.00284212]
[1641341836055,0.65986685,3796.7,3796.0,0.00284212]
[1641341836255,1.77680674,3796.4,3796.0,0.00284212]
[1641341837498,2.43558674,3796.4,3796.0,0.00284212]
[1641341838098,2.43558674,3796.4,3795.8,0.00397896]
[1641341838499,1.77680674,3796.3,3795.8,0.00397896]
[1641341838900,0.65881,3796.2,3795.8,0.00397896]
[1641341839098,0.65881,3796.2,3795.8,1.34366474]
[1641341839302,2.43561674,3796.2,3795.8,1.33968578]
[1641341839499,1.77680674,3796.3,3795.9,0.00341054]
[1641341841971,2.43557674,3796.4,3795.9,0.00341054]
[1641341843169,1.77680674,3796.4,3795.9,0.66214054]
[1641341843572,1.77680674,3796.4,3796.0,0.00284212]
[1641341844401,1.77680674,3796.5,3795.9,0.00341054]
[1641341844610,2.07680674,3796.5,3795.9,0.00341054]
[1641341845205,1.77680674,3796.4,3795.9,0.00341054]
[1641341845604,1.77680674,3796.4,3796.0,0.65871]
[1641341846004,1.77680674,3796.4,3796.1,0.00227369]
[1641341846203,1.77680674,3796.6,3796.1,0.00227369]
[1641341847005,2.43552674,3796.6,3796.1,0.00227369]
[1641341847206,2.43552674,3796.6,3795.9,0.66213054]
[1641341847404,2.43552674,3796.6,3796.0,0.00284212]
[1641341848274,0.65876,3796.4,3796.0,0.00284212]
[1641341848672,0.65876,3796.4,3795.9,0.00341054]
[1641341849273,2.43556674,3796.4,3795.9,0.00341054]
[1641341850273,1.77680674,3796.3,3795.9,0.00341054]
[1641341850673,2.43558674,3796.2,3795.9,0.00341054]
[1641341851477,0.65878,3796.2,3795.9,0.00341054]
[1641341853100,0.65878,3796.2,3795.5,0.00568423]
[1641341853799,0.65889,3795.8,3795.4,1.37661437]
[1641341854199,0.65889,3795.8,3795.5,0.00568423]
[1641341855850,0.65891,3795.7,3795.5,0.00568423]
[1641341859498,4.13544094,3796.0,3795.5,0.00568423]
[1641341859499,2.81762674,3796.0,3795.5,0.00568423]
[1641341860104,1.04082,3796.0,3795.5,0.00568423]
[1641341861100,2.43562714,3796.2,3795.5,2.3691371]
[1641341861101,1.77680674,3796.2,3795.5,2.3691371]
[1641341861499,1.77680674,3796.2,3795.8,0.65874]
[1641341861902,1.77680674,3796.2,3795.9,0.00341054]
[1641341862604,1.83400674,3796.6,3795.8,0.00397896]
[1641341862801,1.77680674,3796.6,3795.8,0.00397896]
[1641341863047,2.43553674,3796.6,3795.8,0.00397896]
[1641341863248,2.43553674,3796.6,3795.9,0.65872]
[1641341863649,1.77680674,3796.4,3796.0,0.00284212]
[1641341864052,1.77680674,3796.4,3795.7,0.00454739]
[1641341864053,2.43555674,3796.4,3795.7,0.00454739]
[1641341864850,2.43555674,3796.4,3795.7,0.66330739]
[1641341865051,2.43555674,3796.4,3796.2,1.42244448]
[1641341865254,1.77680674,3796.4,3796.2,1.42244448]
[1641341865450,1.77680674,3796.4,3796.3,0.00113685]
[1641341867622,2.43665359,3796.7,3796.3,0.00113685]
[1641341868223,0.65984685,3796.7,3796.6,1.47533039]
[1641341870023,0.00113685,3796.7,3796.6,1.47533039]
[1641341876399,0.65986765,3796.7,3796.1,0.00227369]
[1641341876600,0.65874,3796.5,3796.1,0.00227369]
[1641341876800,0.65874,3796.5,3796.0,0.00284212]
[1641341877201,0.65874,3796.5,3795.9,0.00341054]
[1641341877401,0.65874,3796.5,3795.8,0.00397896]
[1641341877601,0.65874,3796.5,3796.3,1.29295924]
[1641341878049,0.65874,3796.5,3795.8,0.00397896]
[1641341878451,0.65874,3796.5,3795.7,0.00454739]
[1641341878649,0.65874,3796.5,3795.6,0.00511581]
[1641341879452,2.43554674,3796.5,3795.6,0.00511581]
[1641341879851,0.6587976,3796.4,3796.1,1.13588135]
[1641341880052,0.6588,3796.2,3796.1,1.13588135]
[1641341880252,0.6588,3796.2,3795.5,1.83328]